bitfinex/quotes_ETHUSD_20250603
["timestamp","ask_amount","ask_price","bid_price","bid_amount"]
[1748913749911,0.04765456,2623.2,2623.0,3.81242011]
[1748913750111,3.966,2623.2,2623.0,3.81242011]
[1748913751016,0.7989,2623.6,2623.0,0.7891]
[1748913751221,0.7989,2623.6,2623.3,3.81187598]
[1748913751847,0.84654811,2623.6,2623.3,3.81187598]
[1748913752151,5.13937065,2623.6,2623.0,3.81233973]
[1748913753263,0.84654811,2623.6,2622.7,7.30302612]
[1748913753415,0.84654811,2623.6,2623.2,3.81208677]
[1748913753846,0.84654811,2623.6,2623.1,3.8121927]
[1748913754060,4.65811741,2623.6,2623.1,3.8121927]
[1748913754431,4.65817917,2623.6,2623.0,3.81242327]
[1748913754627,5.90163339,2623.6,2623.0,3.81230104]
[1748913755041,5.90163339,2623.6,2623.1,3.81225265]
[1748913755236,5.90163339,2623.6,2623.0,3.8124211]
[1748913755428,2.09000233,2623.6,2623.1,3.81224861]
[1748913755629,2.09000233,2623.6,2623.2,3.81211217]
[1748913755830,4.7609,2623.6,2623.4,3.81177146]
[1748913756030,0.7989,2623.6,2623.3,3.81198808]
[1748913756246,0.7989,2623.6,2623.1,11.81228317]
[1748913756456,4.7609,2623.6,2623.5,3.81170192]
[1748913756665,4.7609,2623.6,2623.4,3.81178414]
[1748913757357,0.7989,2623.6,2623.5,3.81170192]
[1748913757561,0.7989,2623.6,2623.4,3.81178596]
[1748913757967,0.8034,2624.0,2623.9,3.81112085]
[1748913758185,4.7654,2624.0,2623.6,6.50022612]
[1748913758386,0.04763886,2623.9,2623.4,3.81178333]
[1748913758896,0.04763886,2623.9,2623.5,3.81165501]
[1748913759112,4.81304266,2624.0,2623.6,3.81154177]
[1748913759314,4.81304266,2624.0,2623.0,4.77]
[1748913759315,0.8168,2622.9,2621.5,0.826]
[1748913759486,0.8168,2622.7,2621.5,0.826]
[1748913759805,0.0476723,2622.6,2621.8,6.50022612]
[1748913760006,4.01,2622.5,2622.1,6.52022612]
[1748913760168,0.04766959,2622.6,2622.1,6.52022612]
[1748913760376,0.04766716,2623.3,2622.4,6.50022612]
[1748913760577,4.015,2623.2,2622.7,6.50022612]
[1748913760788,0.40626672,2623.2,2622.7,10.31307914]
[1748913760979,4.015,2623.1,2622.6,10.31319227]
[1748913761178,0.04765606,2623.0,2622.5,3.81311327]
[1748913761401,0.04765606,2623.0,2622.4,8.0]
[1748913761572,0.8041,2622.9,2622.4,8.0]
[1748913761776,4.61667801,2622.9,2622.4,8.0]
[1748913762102,0.0476617,2622.8,2622.2,12.64354065]
[1748913762301,3.81188797,2623.4,2622.6,10.31320002]
[1748913762302,4.018,2623.0,2622.6,10.31320002]
[1748913762496,0.04765862,2622.9,2622.2,11.14378592]
[1748913762700,0.04765862,2622.9,2622.4,3.8132904]
[1748913762902,4.06566098,2623.0,2622.5,3.81304074]
[1748913763879,4.06566098,2623.0,2622.4,3.81320429]
[1748913764215,4.06566098,2623.0,2622.5,3.81308579]
[1748913764414,0.04766098,2623.1,2622.5,3.81308579]
[1748913764620,4.019,2622.9,2622.5,3.81308579]
[1748913765413,4.018,2622.9,2622.6,3.81300999]
[1748913765912,4.018,2622.9,2622.5,6.50022612]
[1748913766111,4.018,2622.9,2622.6,3.81300978]
[1748913766718,0.04766098,2623.2,2622.6,3.81300978]
[1748913766884,4.018,2623.1,2622.6,3.81297458]
[1748913767284,4.0656568,2623.1,2622.6,3.81297458]
[1748913767514,7.87795037,2623.1,2622.5,10.31331603]
[1748913767708,4.017,2623.0,2622.5,10.31334622]
[1748913768420,4.017,2623.0,2622.6,3.81300755]
[1748913768617,4.017,2623.0,2622.7,3.81286442]
[1748913768921,4.015,2622.9,2622.7,3.81277813]
[1748913769525,4.015,2622.9,2622.6,3.81295709]
[1748913769895,4.015,2622.9,2622.5,3.81305802]
[1748913770096,0.42884584,2623.3,2622.7,3.81283431]
[1748913770298,0.85175366,2623.4,2622.8,3.82204413]
[1748913770498,4.013,2623.3,2623.0,3.81242364]
[1748913771222,4.013,2623.3,2622.8,10.31290195]
[1748913771223,4.013,2623.3,2622.9,3.81252348]
[1748913772226,0.8041,2623.4,2623.2,3.81213784]
[1748913772527,0.8041,2623.4,2622.7,0.8054]
[1748913772528,4.61597765,2623.4,2622.8,8.0]
[1748913772726,5.90749167,2623.4,2622.8,8.0]
[1748913772887,2.09561402,2623.4,2622.9,3.81255584]
[1748913773091,2.09561402,2623.4,2622.8,11.81265045]
[1748913773288,5.90752113,2623.4,2622.8,11.81265045]
[1748913774239,3.8122189,2623.2,2622.7,1.052]
[1748913774390,4.012,2623.1,2622.7,1.052]
[1748913775039,4.012,2623.1,2622.7,4.86486368]
[1748913777860,0.7589,2622.5,2620.7,0.59580296]
[1748913778055,0.7589,2621.6,2620.3,0.7866]
[1748913778217,0.04769069,2621.5,2620.4,6.69921318]
[1748913778422,4.10169069,2621.5,2620.5,0.00948018]
[1748913778672,4.10169069,2621.5,2620.6,10.0]
[1748913778951,4.10169069,2621.5,2620.5,1.102]
[1748913779340,7.91640986,2621.5,2620.8,3.81558528]
[1748913779702,7.91640986,2621.5,2620.5,1.102]
[1748913779703,5.35065656,2621.5,2620.5,1.102]
[1748913779929,3.81500158,2621.3,2620.5,4.91801981]
[1748913780133,3.86273761,2621.2,2620.5,1.102]
[1748913780323,4.10169107,2621.2,2620.5,1.102]
[1748913780538,4.10169107,2621.2,2620.6,3.81590796]
[1748913781337,4.10069107,2621.2,2620.6,3.81590796]
[1748913781547,0.04769107,2621.2,2620.5,7.60222612]
[1748913781755,0.7761,2622.9,2621.1,6.52022612]
[1748913781956,0.7761,2622.1,2621.2,8.0094547]
[1748913782259,4.055,2622.0,2621.7,3.81427174]
[1748913782553,4.055,2621.9,2621.5,3.82406743]
[1748913782727,0.7761,2622.1,2621.5,3.82406743]
[1748913782921,4.054,2622.0,2621.5,3.81460995]
[1748913783556,4.054,2622.0,2621.6,0.00945675]
[1748913783735,4.054,2622.0,2621.5,3.81455921]
[1748913783935,4.054,2622.0,2621.6,0.00945676]
[1748913784338,4.054,2622.0,2621.5,3.81455921]
[1748913785267,4.054,2622.0,2621.3,4.91688261]
[1748913785268,3.8617225,2621.9,2621.3,1.102]
[1748913785429,4.57551012,2621.7,2621.3,1.102]
[1748913785632,0.04768438,2621.6,2621.3,1.102]
[1748913785851,4.055,2621.5,2621.3,1.102]
[1748913786770,0.7611,2621.7,2621.4,3.81474281]
[1748913786929,4.054,2621.6,2621.3,4.9168781]
[1748913787562,0.7611,2621.7,2621.3,4.9168781]
[1748913787742,4.054,2621.6,2621.3,4.9168781]
[1748913788474,4.054,2621.6,2621.3,1.102]
[1748913788656,4.054,2621.6,2621.3,4.91684457]
[1748913788857,4.054,2621.6,2621.3,1.102]
[1748913789030,4.054,2621.6,2621.3,4.91685713]
[1748913789241,4.054,2621.6,2621.3,4.92632422]
[1748913789571,4.054,2621.6,2621.3,4.91685713]
[1748913789878,4.049,2621.7,2621.4,3.81471456]
[1748913790082,4.049,2621.7,2621.5,3.81456517]
[1748913790285,4.049,2621.7,2621.6,3.81446444]
[1748913790594,4.049,2621.7,2621.4,3.824193]
[1748913790743,0.04768196,2621.6,2621.3,1.102]
[1748913791133,4.05,2621.5,2621.3,4.91688849]
[1748913791368,4.05,2621.5,2621.3,1.102]
[1748913791570,0.04768196,2621.6,2621.3,1.102]
[1748913791776,4.049,2621.5,2621.4,3.81473543]
[1748913793364,4.049,2621.5,2621.3,4.91689701]
[1748913793769,0.04768197,2621.9,2621.4,3.81475547]
[1748913793969,4.045,2621.8,2621.5,3.81450833]
[1748913794276,0.04768124,2621.7,2621.5,3.81450833]
[1748913794477,0.04768124,2621.7,2621.4,3.81471858]
[1748913794879,0.04768124,2621.7,2621.3,4.91686677]
[1748913795065,0.04768124,2621.7,2621.3,1.102]
[1748913795457,0.04768124,2621.7,2621.3,4.91680721]
[1748913796075,0.04768124,2621.7,2621.4,3.81465958]
[1748913797269,4.039,2621.6,2621.5,3.81447112]
[1748913797474,4.039,2621.6,2621.4,3.81475547]
[1748913797947,0.785,2621.5,2621.3,4.91678229]
[1748913798255,4.039,2621.6,2621.4,3.81475547]
[1748913799384,4.039,2621.6,2621.3,1.102]
[1748913799760,4.039,2621.6,2621.4,3.81463535]
[1748913800348,4.039,2621.6,2621.5,3.81460995]
[1748913800553,4.039,2621.6,2621.4,3.81469537]
[1748913801790,4.039,2621.6,2621.3,1.102]
[1748913801978,4.039,2621.6,2621.3,4.91687486]
[1748913802979,4.039,2621.6,2621.4,3.81467635]
[1748913803178,4.039,2621.6,2621.3,4.91684313]
[1748913803880,4.039,2621.6,2621.3,1.102]
[1748913804056,4.039,2621.6,2621.4,3.81475409]
[1748913804256,0.83268123,2621.8,2621.7,3.81431895]
[1748913804457,4.028,2622.0,2621.8,3.81404488]
[1748913805201,0.04767469,2622.2,2622.1,3.81373708]
[1748913805408,0.809,2622.5,2622.4,3.81330079]
[1748913805610,4.839,2622.5,2622.2,3.81345856]
[1748913806256,4.839,2622.5,2622.1,3.81369296]
[1748913806553,0.7797,2622.3,2621.3,1.9192]
[1748913806759,0.0476747,2622.2,2621.7,3.81427103]
[1748913807088,4.031,2622.1,2621.7,3.81427103]
[1748913807475,4.031,2622.1,2621.6,3.81443463]
[1748913807863,4.029,2622.0,2621.9,3.81394171]
[1748913809003,4.029,2622.0,2621.6,3.81443419]
[1748913809199,0.04767526,2621.9,2621.5,3.81451106]
[1748913809387,4.029,2622.0,2621.6,0.00946073]
[1748913809567,4.029,2622.0,2621.7,3.81426187]
[1748913810099,0.04767798,2622.2,2621.8,3.81414622]
[1748913810302,4.026,2621.9,2621.8,3.81414622]
[1748913810507,3.11028302,2621.9,2621.8,3.81417346]
[1748913811688,0.04767798,2622.2,2621.8,3.81417346]
[1748913811884,4.023,2622.0,2621.9,3.81402799]
[1748913813489,4.023,2622.0,2621.7,3.81429644]
[1748913813490,4.023,2622.0,2621.8,3.81411942]
[1748913813687,4.023,2622.0,2621.8,3.81407323]
[1748913813898,4.023,2622.0,2621.9,3.81402799]
[1748913814247,4.023,2622.0,2621.8,3.81407323]
[1748913814248,0.87637345,2622.7,2622.0,0.7876]
[1748913814378,4.48790973,2622.6,2621.9,3.81402799]
[1748913814580,0.04766675,2622.5,2622.1,3.81373471]
[1748913814891,3.86082622,2622.5,2621.8,3.81410716]
[1748913815205,0.7809,2622.4,2621.8,11.81402975]
[1748913815385,0.04767258,2622.3,2621.9,3.8139459]
[1748913815581,4.018,2622.2,2621.9,3.8139459]
[1748913815783,4.019,2622.2,2622.0,3.81375039]
[1748913816120,4.019,2622.2,2622.1,3.81373708]
[1748913816279,4.019,2622.2,2622.0,3.81382893]
[1748913816482,4.018,2622.2,2622.1,3.81362195]
[1748913817397,4.017,2622.3,2622.2,3.81355606]
[1748913817603,0.7809,2622.4,2622.3,3.81344621]
[1748913817795,0.8062,2622.7,2621.6,4.60465625]
[1748913818011,4.016,2622.4,2622.3,3.81344621]
[1748913818529,4.017,2622.4,2622.2,3.81352195]
[1748913818928,4.4187,2622.4,2622.0,3.81387658]
[1748913819126,0.04766844,2622.3,2621.8,3.81416158]
[1748913819317,0.04766844,2622.3,2622.0,3.81386423]
[1748913820045,0.04766844,2622.3,2622.0,3.81373882]
[1748913820245,0.04766844,2622.3,2621.6,8.7902]
[1748913820246,0.04766844,2622.3,2622.1,3.81369759]
[1748913820448,0.40646684,2622.3,2622.0,3.81381412]
[1748913820742,0.45414016,2622.3,2622.0,3.81381412]
[1748913820943,0.45414016,2622.3,2621.9,3.81401559]
[1748913821140,0.8159,2622.2,2621.7,0.00944799]
[1748913821341,0.8159,2622.2,2621.7,3.81431895]
[1748913821545,0.8159,2622.2,2622.0,3.8138208]
[1748913821758,4.013,2622.1,2622.0,3.8138208]
[1748913822112,4.013,2622.1,2622.0,3.81388253]
[1748913822313,3.81303086,2622.6,2621.6,0.7902]
[1748913822314,4.8099,2622.7,2622.3,3.8133714]
[1748913822538,0.52865624,2622.6,2622.3,3.8133714]
[1748913822944,4.49799,2622.6,2622.3,3.81340815]
[1748913823109,4.017,2622.6,2622.4,3.81322006]
[1748913823733,4.017,2622.6,2622.3,3.81340173]
[1748913824843,4.06466425,2622.6,2621.8,8.0]
[1748913825051,0.04766425,2622.6,2621.9,8.0]
[1748913825340,4.016,2622.5,2622.2,3.81346312]
[1748913826052,4.016,2622.5,2621.8,8.0]
[1748913826053,0.51289447,2622.6,2621.8,11.81410633]
[1748913826245,4.015,2622.4,2621.9,8.0]
[1748913826416,4.015,2622.4,2621.8,3.81410633]
[1748913826623,4.015,2622.4,2622.2,3.81350161]
[1748913827359,4.015,2622.4,2622.0,3.81379103]
[1748913827773,4.015,2622.4,2622.1,3.81370648]
[1748913828243,4.014,2622.4,2622.2,3.81355371]
[1748913828830,4.014,2622.4,2621.8,8.0]
[1748913829035,4.014,2622.4,2621.9,3.81402799]
[1748913829241,4.4201667,2622.4,2622.0,3.81384359]
[1748913829555,0.0476683,2622.3,2622.0,3.81384359]
[1748913830060,0.0476683,2622.3,2622.0,3.81388253]
[1748913830231,0.7919,2622.7,2622.1,0.00944655]
[1748913830561,4.01,2622.6,2622.3,3.8133238]
[1748913830735,4.49019,2622.6,2622.2,3.81353366]
[1748913830934,0.04766611,2622.5,2622.2,3.81353366]
[1748913831159,0.04766611,2622.5,2622.0,8.0]
[1748913831466,0.04766611,2622.5,2622.1,3.81370135]
[1748913831961,0.04766611,2622.5,2622.0,3.81385362]
[1748913832258,0.04766611,2622.5,2622.1,3.81373708]
[1748913832956,0.04766611,2622.5,2622.2,3.8135866]
[1748913833181,4.007,2622.5,2622.3,3.813367]
[1748913834077,4.007,2622.5,2622.4,3.81330079]
[1748913834261,4.005,2622.5,2622.4,3.81330079]
[1748913834674,4.005,2622.5,2622.3,3.81341347]
[1748913835391,4.005,2622.5,2622.4,3.81330079]
[1748913836378,4.002,2622.6,2622.3,3.81340379]
[1748913836582,4.002,2622.6,2622.2,3.81354799]
[1748913836884,4.002,2622.6,2622.3,3.81344621]
[1748913837485,4.002,2622.6,2622.2,3.81353922]
[1748913837486,4.53382022,2622.6,2622.2,3.81353922]
[1748913837664,4.53382022,2622.6,2622.3,3.81344572]
[1748913838877,4.53382022,2622.6,2622.1,3.81359597]
[1748913839051,4.53382022,2622.6,2622.2,3.813552]
[1748913839584,4.53382022,2622.6,2621.8,8.0]
[1748913839585,3.997,2622.5,2622.3,3.81336597]
[1748913840890,3.997,2622.5,2622.2,3.81358093]
[1748913841379,3.997,2622.5,2622.2,3.81358516]
[1748913841892,3.997,2622.5,2622.3,3.81341766]
[1748913842252,3.997,2622.5,2622.3,3.81338952]
[1748913842694,3.997,2622.5,2622.2,3.81352741]
[1748913842991,3.997,2622.5,2622.3,3.81343186]
[1748913843595,3.992,2622.5,2622.4,3.81324931]
[1748913844052,0.0476669,2622.7,2622.6,3.81300999]
[1748913844270,3.99,2622.7,2622.4,3.81317969]
[1748913844670,3.99,2622.7,2622.1,4.2815091]
[1748913845061,3.99,2622.7,2622.6,3.81300999]
[1748913845278,3.99,2622.7,2622.5,3.81308418]
[1748913845487,3.99,2622.7,2622.6,3.81300999]
[1748913845791,0.0476609,2622.9,2622.7,3.8128646]
[1748913845995,0.8228,2623.2,2622.9,3.81248096]
[1748913846200,0.8228,2623.2,2622.7,0.00941491]
[1748913846510,0.8228,2623.6,2623.5,3.81170192]
[1748913846662,0.8228,2623.6,2623.4,3.81183878]
[1748913846857,4.8138,2623.6,2623.1,0.7759]
[1748913847094,4.8138,2623.6,2622.8,8.0]
[1748913847095,4.8138,2623.6,2623.2,3.81208485]
[1748913847291,0.8228,2623.6,2623.3,3.81196424]
[1748913847494,4.8138,2623.6,2623.2,3.81202159]
[1748913847796,3.85891906,2623.8,2623.2,3.81213784]
[1748913847797,4.8035,2623.8,2623.2,3.81213784]
[1748913847998,0.04764617,2623.7,2623.3,3.81195814]
[1748913848229,0.04764617,2623.7,2623.2,3.81207664]
[1748913848585,0.8125,2623.8,2623.4,3.81171428]
[1748913849096,0.8125,2623.8,2623.3,3.81196224]
[1748913849918,0.8125,2623.8,2623.2,3.82151383]
[1748913850306,4.7995,2623.8,2623.3,3.81199252]
[1748913850627,4.7995,2623.8,2623.4,3.81174561]
[1748913850917,4.7995,2623.8,2623.3,3.81195816]
[1748913851863,4.84714383,2623.8,2623.3,3.81195816]
[1748913852622,0.02,2623.9,2623.6,3.8115387]
[1748913852829,0.02,2623.9,2623.4,0.7786]
[1748913853215,0.02,2623.9,2623.5,3.81170192]
[1748913853430,0.02,2623.9,2623.8,3.8112661]
[1748913853746,0.02,2623.9,2623.8,3.82063863]
[1748913854039,0.02,2623.9,2623.8,3.8112661]
[1748913854445,0.02,2623.9,2623.8,3.82063826]
[1748913854624,0.02,2623.9,2623.8,3.8112661]
[1748913855408,0.02,2623.9,2623.8,12.5618661]
[1748913856824,0.02,2623.9,2623.8,16.5488661]
[1748913857001,0.02,2623.9,2623.8,25.4887171]
[1748913857202,0.7873,2624.9,2624.5,3.81017819]
[1748913857408,0.7873,2624.9,2624.3,4.58905376]
[1748913857598,0.7873,2624.9,2624.4,3.81039475]
[1748913858147,0.7873,2624.9,2624.2,8.36915023]
[1748913858148,3.80997046,2624.7,2624.2,1.071]
[1748913858328,0.04762652,2624.6,2624.2,1.071]
[1748913858534,0.7599,2624.6,2624.1,8.0]
[1748913858696,4.57000737,2624.6,2624.0,12.88188175]
[1748913858898,0.7599,2624.6,2624.2,8.0]
[1748913859699,0.04762778,2624.5,2623.7,0.7573]
[1748913859944,3.85793804,2624.5,2623.9,3.81098256]
[1748913860435,7.84593804,2624.5,2623.9,3.81098256]
[1748913860806,4.03562778,2624.5,2623.9,3.81098256]
[1748913861106,4.03562778,2624.5,2623.8,3.8112384]
[1748913861354,4.51518056,2624.5,2623.7,8.7573]
[1748913861507,4.60661998,2624.3,2623.7,11.81136697]
[1748913861707,0.84363435,2624.3,2623.8,3.81125424]
[1748913862142,0.84363435,2624.3,2623.9,3.81107431]
[1748913862653,0.796,2624.3,2623.9,3.81107431]
[1748913863650,0.796,2624.3,2623.8,3.8112293]
[1748913863808,0.7651,2624.1,2623.2,0.8131]
[1748913864008,0.04763432,2624.2,2623.4,4.0]
[1748913864009,4.03063886,2624.0,2623.4,4.0]
[1748913864233,0.7651,2623.9,2623.4,7.81182903]
[1748913864461,0.04764395,2623.8,2623.4,7.81182903]
[1748913864621,0.04764395,2623.8,2623.3,4.88294831]
[1748913865346,3.81164998,2623.6,2622.7,0.19141]
[1748913865548,0.0476498,2623.5,2622.9,1.071]
[1748913865748,3.85926977,2623.6,2622.9,3.81257386]
[1748913865915,4.64312934,2623.5,2623.0,8.0]
[1748913866119,0.8314,2623.5,2622.9,11.81254914]
[1748913866356,0.8314,2623.5,2623.0,3.81237899]
[1748913866576,0.8314,2623.5,2622.8,1.071]
[1748913866753,0.8314,2623.5,2623.1,3.81215396]
[1748913866950,4.8144,2623.5,2622.8,1.071]
[1748913867368,0.8314,2623.5,2622.8,1.071]
[1748913867535,4.8134,2623.5,2622.9,0.00939815]
[1748913867739,4.8134,2623.5,2623.1,3.81216286]
[1748913867940,4.86104942,2623.5,2623.1,3.81216286]
[1748913868183,4.86104942,2623.5,2622.8,1.071]
[1748913868325,3.85951082,2623.4,2622.8,4.88366558]
[1748913868753,0.04765017,2623.4,2622.8,1.071]
[1748913868953,0.04765017,2623.4,2623.1,3.8122688]
[1748913869155,4.8134,2623.5,2623.1,3.8122688]
[1748913869156,4.86105016,2623.5,2623.1,3.8122688]
[1748913869343,4.86105016,2623.5,2622.8,1.071]
[1748913869743,4.86105016,2623.5,2623.1,3.81224512]
[1748913869966,4.86105016,2623.5,2623.0,3.81237091]
[1748913870170,0.04765017,2623.4,2623.0,3.81237091]
[1748913870742,0.04765017,2623.4,2623.1,3.81226607]
[1748913871074,0.87905017,2623.5,2623.1,3.81226607]
[1748913871457,0.8118,2624.2,2623.4,3.81184722]
[1748913871658,0.8118,2623.7,2623.4,3.81184722]
[1748913871990,0.85944418,2623.6,2623.0,3.81242194]
[1748913872297,4.67108112,2623.6,2623.0,3.81242194]
[1748913872794,3.81175293,2623.5,2622.9,3.81251578]
[1748913873089,0.8118,2623.3,2622.9,3.81251578]
[1748913873640,0.8118,2623.3,2622.6,9.294]
[1748913873844,0.8118,2623.3,2622.8,3.81263078]
[1748913874083,0.85945332,2623.3,2622.8,3.81263078]
[1748913874293,0.85945332,2623.3,2622.9,3.81257183]
[1748913874441,1.32659022,2623.3,2622.8,3.81266161]
[1748913874647,1.32659022,2623.3,2622.9,3.81253211]
[1748913874894,1.32659022,2623.3,2622.9,3.81256545]
[1748913875071,0.04765564,2623.2,2622.6,3.81300999]
[1748913875278,0.04765564,2623.2,2622.8,3.81261817]
[1748913875789,0.04765564,2623.2,2622.9,3.81254501]
[1748913876492,0.04765564,2623.2,2623.0,3.81236182]
[1748913876649,4.7978,2623.3,2623.0,3.81236182]
[1748913876851,0.04765544,2623.2,2622.9,3.81250516]
[1748913877270,0.04765544,2623.2,2623.0,3.8124114]
[1748913877476,0.04765544,2623.2,2622.9,3.81252483]
[1748913879570,0.04765544,2623.2,2622.8,3.81266429]
[1748913879895,0.04765544,2623.2,2622.9,3.81255532]
[1748913880874,0.85945561,2623.3,2622.7,8.00941491]
[1748913881055,0.8118,2623.3,2622.8,3.81271923]
[1748913881394,0.8118,2623.3,2622.7,0.00941491]
[1748913881999,0.0476554,2623.2,2623.0,3.81235569]
[1748913882297,0.8118,2623.3,2623.0,3.81235569]
[1748913882495,0.8118,2623.3,2622.9,0.00941092]
[1748913882797,11.38085986,2624.4,2623.2,3.81201864]
[1748913882798,0.7532,2623.5,2623.2,3.81201864]
[1748913883582,0.7532,2623.5,2623.3,3.81194597]
[1748913883782,0.7532,2623.5,2623.4,3.81184722]
[1748913883975,0.8204,2623.7,2623.4,3.81177877]
[1748913884609,0.86804597,2623.7,2623.0,3.81242851]
[1748913884813,0.86804597,2623.7,2623.4,3.8117257]
[1748913885478,0.86804597,2623.7,2623.2,3.81207529]
[1748913885479,0.8204,2623.7,2623.3,3.81192502]
[1748913885927,0.8204,2623.7,2622.8,14.29410783]
[1748913886074,0.8204,2623.7,2623.0,3.81242851]
[1748913886274,0.8204,2623.7,2623.1,3.81214102]
[1748913886576,0.8204,2623.7,2623.4,3.81182791]
[1748913887079,0.8204,2623.7,2623.3,3.81195964]
[1748913887621,0.8204,2623.7,2623.4,3.81182342]
[1748913890920,0.8204,2623.7,2623.5,3.81169527]
[1748913891585,0.8204,2623.7,2623.4,3.81177609]
[1748913892221,0.8204,2623.7,2623.1,4.93769517]
[1748913892424,0.8204,2623.7,2623.6,3.81155663]
[1748913892721,3.971,2624.0,2623.3,3.48450689]
[1748913892899,4.01864057,2624.0,2623.6,3.81146651]
[1748913893102,0.799,2623.9,2623.5,3.81164513]
[1748913895045,0.799,2623.9,2623.4,3.81184722]
[1748913895209,0.799,2623.9,2623.5,3.81165127]
[1748913896359,0.799,2623.9,2623.1,4.87727906]
[1748913896360,3.81163348,2623.6,2623.1,4.87727906]
[1748913896573,0.04764876,2623.5,2623.2,3.81210592]
[1748913896718,0.04764876,2623.6,2623.2,3.81210592]
[1748913897431,0.04764876,2623.6,2623.3,3.81199064]
[1748913899368,0.04764876,2623.6,2623.4,3.81175425]
[1748913899666,0.86554875,2623.7,2623.3,3.81193539]
[1748913900066,1.49951072,2623.7,2623.3,3.81193539]
[1748913900273,0.68161072,2623.7,2622.7,0.6994]
[1748913900572,0.7578,2623.3,2622.9,3.8125424]
[1748913900736,0.04765438,2623.2,2623.0,3.8123932]
[1748913900956,0.7578,2623.3,2623.1,3.81228317]
[1748913901174,0.7578,2623.3,2623.2,3.81213784]
[1748913901539,0.7651,2623.5,2623.4,3.81184722]
[1748913901738,0.7651,2623.5,2622.9,0.03811988]
[1748913901739,0.7651,2623.5,2623.3,3.81198249]
[1748913902163,0.7651,2623.5,2623.4,3.81184722]
[1748913902570,3.97,2623.8,2623.6,3.81152325]
[1748913903141,3.97,2623.8,2623.2,3.48450689]
[1748913903142,3.97,2623.8,2623.5,3.81163353]
[1748913903466,3.97,2623.8,2623.6,3.81152605]
[1748913903670,0.8121,2623.9,2623.4,3.81184722]
[1748913903896,0.8121,2623.9,2623.7,3.81139469]
[1748913904181,0.8121,2623.9,2623.6,3.81154857]
[1748913904385,0.85034085,2623.9,2623.6,3.81154857]
[1748913904744,0.85034085,2623.9,2623.3,0.6994]
[1748913905156,0.85034085,2623.9,2623.4,3.81171681]
[1748913905371,4.82034085,2623.9,2623.4,3.81171681]
[1748913905578,0.7961,2623.6,2622.2,4.82532769]
[1748913905793,8.7961,2623.4,2622.5,4.0]
[1748913905947,0.03824085,2623.3,2623.2,3.81213784]
[1748913906284,0.7961,2623.4,2623.2,3.812059]
[1748913906580,0.7961,2623.4,2623.2,3.81209758]
[1748913906879,0.7961,2623.4,2622.9,3.81253743]
[1748913907244,0.7961,2623.4,2623.0,3.81242851]
[1748913907440,0.7961,2623.4,2622.7,4.18390689]
[1748913907668,0.7961,2623.4,2623.3,3.81199252]
[1748913907878,0.7887,2623.6,2623.1,3.48450689]
[1748913908086,0.7887,2623.6,2623.3,3.81199252]
[1748913908406,0.7887,2623.6,2623.4,3.81184722]
[1748913908610,0.7887,2623.6,2623.5,3.81170192]
[1748913908811,0.786,2623.9,2623.5,3.81170192]
[1748913909115,4.777,2623.9,2623.6,3.81154973]
[1748913909702,0.786,2623.9,2623.6,3.81154973]
[1748913909887,0.786,2623.9,2623.6,3.81146898]
[1748913910092,0.80264085,2624.1,2623.9,3.81111708]
[1748913910397,0.7644,2624.1,2623.6,3.81149088]
[1748913910573,0.03824085,2624.0,2623.7,3.81128495]
[1748913910775,0.7644,2624.1,2623.8,3.81113188]
[1748913910984,0.7644,2624.1,2624.0,3.8109756]
[1748913911186,0.03824085,2624.3,2624.0,3.8109756]
[1748913911187,3.991,2624.3,2624.0,3.8109756]
[1748913911385,4.7537,2624.3,2623.6,4.51088722]
[1748913911627,0.7627,2624.3,2623.6,4.51088722]
[1748913911773,0.7627,2624.3,2624.0,3.81085761]
[1748913911774,4.7527,2624.3,2624.0,3.81085761]
[1748913911971,0.7627,2624.3,2624.0,3.81087037]
[1748913913317,1.24159408,2624.3,2623.9,3.81109454]
[1748913913513,0.7627,2624.3,2623.9,3.81109454]
[1748913913713,0.7627,2624.3,2623.9,3.81102997]
[1748913913890,0.7627,2624.3,2624.0,3.81096056]
[1748913914220,4.7497,2624.3,2624.0,3.81096056]
[1748913915030,4.78794085,2624.3,2624.0,3.81096056]
[1748913915232,4.78794085,2624.3,2623.9,3.81105581]
[1748913915892,0.84684085,2624.2,2623.2,0.6994]
[1748913916217,0.84684085,2624.2,2623.5,3.81167746]
[1748913916218,0.8252,2623.9,2623.5,3.81167746]
[1748913916388,0.86344085,2623.9,2623.5,3.81161238]
[1748913916592,0.86344085,2623.9,2623.4,3.81179962]
[1748913916797,1.33088781,2623.9,2623.4,3.81179962]
[1748913917106,1.33088781,2623.9,2623.6,3.81147165]
[1748913917418,5.14201754,2623.9,2623.3,3.81192575]
[1748913917631,0.753,2623.7,2622.9,8.0]
[1748913917829,0.51194085,2623.6,2623.0,7.81242851]
[1748913917980,0.8265,2623.5,2623.0,1.07973926]
[1748913918184,0.8265,2623.5,2623.0,4.89208483]
[1748913918419,0.03824085,2623.4,2623.0,4.89208483]
[1748913918576,0.03824085,2623.4,2623.0,3.81234557]
[1748913918780,0.03824085,2623.4,2622.6,4.18390689]
[1748913918781,3.984,2623.3,2622.6,4.18390689]
[1748913919035,0.8265,2623.1,2622.7,3.8127783]
[1748913919246,0.8265,2623.1,2622.5,9.056]
[1748913919378,0.8265,2623.1,2622.6,3.81300999]
[1748913919722,0.8265,2623.1,2622.7,3.81286401]
[1748913920136,0.8265,2623.1,2622.6,7.29751688]
[1748913920277,0.8265,2623.1,2622.5,1.056]
[1748913920278,0.85034085,2623.6,2623.0,3.48450689]
[1748913920618,0.85034085,2623.6,2623.1,3.81225473]
[1748913920619,3.989,2623.5,2623.1,3.81225473]
[1748913921622,3.988,2623.5,2623.2,3.81212756]
[1748913921838,0.8121,2623.6,2623.4,3.8118314]
[1748913922038,0.8121,2623.6,2623.3,3.81193571]
[1748913922187,4.8001,2623.6,2623.1,3.81215519]
[1748913922532,5.70331296,2623.6,2623.1,3.81216802]
[1748913923033,5.52688326,2623.6,2623.0,3.81237356]
[1748913923184,3.989,2623.5,2622.7,1.7564]
[1748913923384,3.989,2623.5,2623.0,3.81238398]
[1748913923611,0.03824085,2623.4,2622.9,3.8125729]